Cogmind - Beta 12 @@@ ROGUE MODE // 2023.12.14 @ 07:16:29 Player: puppit Result: Destroyed by H-66 Slayer with Heavy Assault Rifle Performance ------------- Evolutions (3) 1500 Regions Visited (12) 2400 Robots Destroyed (69) 345 Value Destroyed (2832) 2832 Prototype IDs (47) 940 Alien Tech Used (0) 0 Bonus (2336) 2336 TOTAL SCORE: 10353 Bonus ------- High Alert Combat Kills 366 Follower Combat Kills 170 Entered Garrisons 200 Used RIF Installer 1000 Aligned with FarCom 300 Met Data Miner 300 Cogmind --------- Core Integrity 0/700 Matter 290/300 Energy 100/100 System Corruption 1% Temperature Cool (0) Movement Core (50) Location -6/Proximity Caves Parts ------- > --- POWER (1) -------- (None) > --- PROPULSION (3) --- (None) > --- UTILITY (7) ------ Hacking Suite Makeshift System Shield Makeshift System Shield Makeshift System Shield > --- WEAPON (2) ------- (None) > --- INVENTORY (5) ---- Enhanced Flexi-carbon Leg Relay Coupler [Demolisher] (20) Neutron Cannon Remote Datajack Peak State ------------ > --- POWER ------------ Makeshift Power Source > --- PROPULSION ------- Airjet VTOL Module VTOL Module > --- UTILITY ---------- Compact Battery Weight Redist. System Improved Transmission Jammer Hacking Suite Makeshift System Shield Makeshift System Shield Relay Coupler [Brawler] > --- WEAPON ----------- Molecular Deconstructor > --- INVENTORY -------- Light Deuterium Engine Makeshift System Shield Makeshift System Shield Relay Coupler [Demolisher] Remote Datajack [Rating: 56] Favorites ----------- Power Light Ion Engine Engine Light Ion Engine Power Core Light Nuclear Core Propulsion Gravmag System Leg Enhanced Flexi-carbon Leg Wheel Wheel Hover Unit Gravmag System Flight Unit VTOL Module Utility Hacking Suite Device Improved Transmission Jammer Storage Compact Battery Processor Salvage Targeting Computer Hackware Hacking Suite Protection Core Shielding Weapon Heavy Assault Rifle Energy Gun AWS/Thermal Energy Cannon Ion Cannon Ballistic Gun Heavy Assault Rifle Ballistic Cannon Gauss Cannon Launcher Missile Launcher Special Weapon Improved Remote Datajack Special Melee Weapon Improved Datajack Build | -11 -10 -10 -10 -9 -8 -8 -8 -7 -7 -7 -7 -6 ------- Run | Jun Mat Min Exi Min Mat Gar Mat Fac Low Low Dat Pro Slots Evolved 6 | . . . . . 4 . . 2 . . . . Power . | . . . . . . . . . . . . . Propulsion 1 | . . . . . . . . 1 . . . . Utility 5 | . . . . . 4 . . 1 . . . . Weapon . | . . . . . . . . . . . . . Parts Attached 170 | 5 16 8 1 4 14 44 21 21 11 20 . 5 Power 25 | 1 2 2 . 1 2 6 3 3 1 4 . . Engine 13 | 1 2 2 . 1 2 1 1 . . 3 . . Core 12 | . . . . . . 5 2 3 1 1 . . Reactor . | . . . . . . . . . . . . . Propulsion 25 | 2 5 2 . 2 1 5 1 4 1 1 . 1 Treads . | . . . . . . . . . . . . . Leg 1 | . . . . . . . . . . . . 1 Wheel 7 | 2 3 2 . . . . . . . . . . Hover 9 | . 2 . . . . 3 1 2 . 1 . . Flight 8 | . . . . 2 1 2 . 2 1 . . . Utility 56 | . 3 4 . . 6 10 7 7 6 10 . 3 Device 20 | . 2 2 . . 2 2 4 3 1 4 . . Storage 7 | . 1 . . . . . . . 4 1 . 1 Processor 7 | . . 2 . . 2 . . 2 . . . 1 Hackware 16 | . . . . . 1 8 1 2 . 4 . . Protection 6 | . . . . . 1 . 2 . 1 1 . 1 Artifact . | . . . . . . . . . . . . . Weapon 64 | 2 6 . 1 1 5 23 10 7 3 5 . 1 Energy Gun 15 | . . . 1 . 1 4 4 . 2 3 . . Energy Cannon 5 | . 2 . . . . . 2 . . . . 1 Ballistic Gun 19 | 2 4 . . 1 4 3 1 3 1 . . . Ballistic Cannon 1 | . . . . . . . . 1 . . . . Launcher 13 | . . . . . . 12 1 . . . . . Special Weapon 10 | . . . . . . 4 1 3 . 2 . . Impact Weapon . | . . . . . . . . . . . . . Slashing Weapon . | . . . . . . . . . . . . . Piercing Weapon . | . . . . . . . . . . . . . Special Melee Weapon 1 | . . . . . . . 1 . . . . . Unidentified Prototypes 5 | . . 1 . . . . 1 . . 1 . 2 Parts Lost 39 | . 4 4 . . 1 4 4 7 3 8 . 4 Power 7 | . . 1 . . . 2 . 1 . 3 . . Propulsion 16 | . 4 2 . . 1 1 . 3 2 3 . . Utility 11 | . . . . . . 1 2 2 1 1 . 4 Weapon 5 | . . 1 . . . . 2 1 . 1 . . Highest Loss Streak 4 | . 2 4 . . 1 2 2 4 3 4 . 4 To Critical Strikes . | . . . . . . . . . . . . . Average Slot Usage (%) 78 | . 87 72 72 85 72 80 92 73 72 78 46 47 Engine 5 | . 14 8 14 14 7 . 2 . . 5 . . Core 2 | . . . . . . 4 6 2 7 1 . . Wheel 4 | . 16 4 28 16 . . . . . . . . Hover 5 | . 1 11 . . . 5 17 8 2 4 . . Flight 6 | . . . . 11 16 11 . 4 14 10 . . Device 8 | . 19 6 . . 4 8 12 8 1 8 7 4 Storage 2 | . 7 1 . . . . . . 7 6 . . Processor 11 | . . 19 28 28 31 15 . 6 15 6 . 2 Hackware 17 | . . . . . 1 25 38 23 17 26 38 34 Protection 1 | . . . . . . . 2 7 2 2 . 2 Energy Gun 1 | . . . . 7 . . 3 . . . . . Energy Cannon 1 | . 5 . . . . . 4 . . . . . Ballistic Gun 5 | . 22 19 1 6 9 2 . 3 . . . . Special Weapon 1 | . . . . . . 4 2 . . 3 . . Naked Turns . | . . . . . . . . . . . . . Heaviest Build 24 | 5 15 24 11 11 13 19 19 23 11 12 . 10 Greatest Support 28 | 26 26 20 20 20 8 18 27 27 10 14 9 28 Greatest Overweight (x) 4 | . 4 1 . 1 1 1 1 1 3 1 . . Average Overweight (x) . | . . . . . . . . . . . . . Largest Inventory Capacity 5 | 5 5 5 5 5 5 5 5 5 5 5 5 5 Average Capacity 5 | 5 5 5 5 5 5 5 5 5 5 5 5 5 Most Carried 5 | 1 5 5 5 5 5 5 5 5 5 5 4 5 Average Carried 4 | . 4 4 4 3 4 4 4 4 4 4 4 3 Final Capacity 5 | 5 5 5 5 5 5 5 5 5 5 5 5 5 Final Carried 5 | 1 4 5 3 5 5 5 5 5 5 4 4 4 Class Distribution -------------------- 52% | Mutant 14% | Scavenger-Mutant 9% | Scavenger-Sprinter 7% | Hacker-Mutant 7% | Bothacker-Mutant 3% | Hacker-Sprinter Dominant Class ---------------- Mutant | -10/Materials Mutant | -10/Mines Mutant | -10/Exiles Mutant | -9/Mines Mutant | -8/Materials Mutant | -8/Garrison Scavenger-Mutant | -8/Materials Mutant | -7/Factory Scavenger-Sprinter | -7/Lower Caves Scavenger-Sprinter | -7/Lower Caves Hacker-Mutant | -7/Data Miner Hacker-Mutant | -6/Proximity Caves Resources | -11 -10 -10 -10 -9 -8 -8 -8 -7 -7 -7 -7 -6 ----------- Run | Jun Mat Min Exi Min Mat Gar Mat Fac Low Low Dat Pro Matter Collected 2935 | 224 431 95 . 97 20 715 485 179 368 286 . 35 Remotely 431 | . 431 . . . . . . . . . . . Salvage Created 2558 | . 521 49 . 320 20 619 732 123 146 28 . . Parts 152 | . 24 5 . 14 4 32 50 14 7 2 . . Haulers Intercepted . | . . . . . . . . . . . . . Recyclers Shooed 1 | . . . . 1 . . . . . . . . Parts Field Recycled . | . . . . . . . . . . . . . Retrieved Matter . | . . . . . . . . . . . . . Parts Self-Destructed 19 | . . . . . . . . . 9 10 . . Prevented 9 | . . . . . . . . . 6 3 . . Kills | -11 -10 -10 -10 -9 -8 -8 -8 -7 -7 -7 -7 -6 ------- Run | Jun Mat Min Exi Min Mat Gar Mat Fac Low Low Dat Pro Combat Hostiles Destroyed 48 | . 8 . . 4 . 17 10 3 5 1 . . Guns 27 | . 6 . . 4 . 7 5 . 5 . . . Cannons 8 | . 2 . . . . . 3 3 . . . . AOE 11 | . . . . . . 10 1 . . . . . Classes Destroyed 11 | . 4 . . 2 1 4 . . . . . . Worker 6 | . 4 2 . . . . . . . . . . Builder 4 | . 1 . . . . . 1 2 . . . . Recycler 4 | . . . . 3 . . 1 . . . . . Operator 2 | . . . . . 1 . 1 . . . . . Watcher 5 | . 2 . . . . . 2 1 . . . . Swarmer 9 | . . . . 4 . . . 1 4 . . . Grunt 21 | . 8 . . . . 5 5 2 1 . . . Duelist 3 | . . . . . . 1 2 . . . . . Sentry 8 | . . . . . . 5 3 . . . . . Hunter 1 | . . . . . . 1 . . . . . . Programmer 6 | . . . . . . 5 . . . 1 . . Best Kill Streak 6 | . 4 1 . 4 1 6 6 1 4 1 . . Combat Bots Only 6 | . 2 . . 4 . 6 2 1 4 1 . . Max Kills in Single Turn 2 | . 1 1 . 1 1 2 1 1 1 1 . . Gunslinging . | . . . . . . . . . . . . . Exploded 2 | . . . . . . 2 1 . . . . . Melee . | . . . . . . . . . . . . . Uniques/NPCs Destroyed . | . . . . . . . . . . . . . Combat | -11 -10 -10 -10 -9 -8 -8 -8 -7 -7 -7 -7 -6 -------- Run | Jun Mat Min Exi Min Mat Gar Mat Fac Low Low Dat Pro Damage Taken 4420 | . 553 232 . 119 273 703 647 579 279 513 . 522 Core 1434 | . 99 49 . 43 111 266 157 144 77 143 . 345 Absorbed by Shields 55 | . . . . . 55 . . . . . . . Redirected to Shielding 73 | . . . . . . . 7 31 3 1 . 31 Regen/Repaired (Parts) 23 | . . . . . . . 23 . . . . . Core Remaining (%) 41 | 100 . . . 23 . . 2 . . . . . Volleys Fired 248 | 1 52 8 . 7 4 34 58 38 17 28 . 1 Largest 2 | 2 2 2 . 1 2 1 2 1 1 1 . 1 Hottest 112 | 40 112 46 . 23 46 46 110 48 55 69 . 90 Shots Fired 356 | 2 90 9 . 25 10 54 82 38 17 28 . 1 Gun 228 | 2 81 9 . 25 10 22 45 10 17 7 . . Cannon 59 | . 9 . . . . . 27 22 . . . 1 Launcher 25 | . . . . . . 25 . . . . . . Special 44 | . . . . . . 7 10 6 . 21 . . Kinetic 152 | 2 81 9 . 7 6 2 4 32 9 . . . Thermal 89 | . . . . 18 4 20 45 . . 1 . 1 Explosive 23 | . . . . . . 23 . . . . . . Electromagnetic 48 | . 9 . . . . 2 23 . 8 6 . . Robot Hit Streak 16 | 1 8 3 . 5 5 16 13 15 7 3 . . Robot Miss Streak 5 | 1 3 2 . 3 1 3 4 4 5 2 . 1 Penetration Max . | . . . . . . . . . . . . . Secondary Targets . | . . . . . . . . . . . . . Autonomous 61 | . . . . 18 4 20 19 . . . . . Shots Hit Robots 236 | 1 60 5 . 17 8 38 64 20 15 8 . . Core Hits 116 | . 23 3 . 10 2 25 24 9 18 1 . 1 Critical Kills 1 | . . . . . . . 1 . . . . . Critical Parts Destroyed 1 | . 1 . . . . . . . . . . . Critical Strikes 4 | . 1 . . . . . 1 1 . 1 . . Meltdown 1 | . . . . . . . 1 . . . . . Destroy 1 | . 1 . . . . . . . . . . . Blast 1 | . . . . . . . . 1 . . . . Corrupt 1 | . . . . . . . . . . 1 . . Melee Attacks 2 | . . . . . . . 2 . . . . . Impact . | . . . . . . . . . . . . . Slashing . | . . . . . . . . . . . . . Piercing . | . . . . . . . . . . . . . Sneak Attacks 1 | . . . . . . . 1 . . . . . Combat Hostiles 1 | . . . . . . . 1 . . . . . Follow-up Attacks . | . . . . . . . . . . . . . Damage Inflicted 5375 | 9 1014 83 . 460 180 1628 1249 425 254 67 . 6 Guns 3288 | 9 849 83 . 425 180 663 627 131 254 67 . . Cannons 957 | . 140 . . . . . 523 294 . . . . Explosions 1069 | . 25 . . . . 965 79 . . . . . Melee . | . . . . . . . . . . . . . Ramming 61 | . . . . 35 . . 20 . . . . 6 Kinetic 1727 | 9 849 83 . 96 62 . 63 425 140 . . . Thermal 2140 | . 25 . . 329 118 663 1005 . . . . . Explosive 906 | . . . . . . 906 . . . . . . Electromagnetic 541 | . 140 . . . . 59 161 . 114 67 . . Impact . | . . . . . . . . . . . . . Slashing . | . . . . . . . . . . . . . Piercing . | . . . . . . . . . . . . . Highest Corruption 5 | . 3 3 3 5 . 3 4 1 1 4 1 1 Average Corruption 2 | . 2 3 3 4 . 2 3 1 1 1 1 1 Corruption Purged 4 | . . . . . . . . . . 4 . . Corruption Blocked . | . . . . . . . . . . . . . Effects 66 | . 9 6 8 7 . 10 12 3 4 5 1 1 Message Errors 10 | . 1 1 3 3 . . 2 . . . . . Matter Fused 16 | . 1 2 3 2 . 2 2 . . 3 1 . Heat Flow Errors 10 | . . . 1 . . 1 3 1 2 2 . . Energy Discharges 8 | . 2 . . 1 . 2 . 1 1 . . 1 Parts Rejected 1 | . . . . . . . 1 . . . . . Parts Fused 1 | . . . . . . . . . 1 . . . Data Loss (minor) 12 | . 2 2 1 1 . 3 3 . . . . . Data Loss (major) 2 | . 1 . . . . 1 . . . . . . Alerts 5 | . 1 1 . . . 1 1 1 . . . . Weapon Failures 1 | . 1 . . . . . . . . . . . Overload Shots . | . . . . . . . . . . . . . Overflow Damage 30 | . . . . . . 26 1 3 . . . . Projectiles 3 | . . . . . . . . 3 . . . . Explosions 27 | . . . . . . 26 1 . . . . . Melee . | . . . . . . . . . . . . . Knockbacks 5 | . . . . 1 . . . 4 . . . . Impact 1 | . . . . 1 . . . . . . . . Kinetic 4 | . . . . . . . . 4 . . . . Secondary . | . . . . . . . . . . . . . Self-Inflicted Damage 150 | . . . . 15 . 122 10 . . . . 3 Shots 5 | . . . . . . 5 . . . . . . Rammed 13 | . . . . 10 . 1 1 . . . . 1 Targets Rammed 13 | . . . . 10 . 1 1 . . . . 1 Kicked . | . . . . . . . . . . . . . Crushed . | . . . . . . . . . . . . . Highest Temperature 277 | . 95 . 271 . 8 228 257 82 277 168 . 22 Average Temperature 56 | . 39 . 141 . 4 83 57 40 82 37 . 16 Received Heat Transfer 993 | . 345 . . . 144 135 225 108 18 18 . . Siege Activations . | . . . . . . . . . . . . . Robots Corrupted . | . . . . . . . . . . . . . Combat Hostiles . | . . . . . . . . . . . . . Parts Fried 1 | . 1 . . . . . . . . . . . Impact Corruptions . | . . . . . . . . . . . . . Robots Melted 1 | . . . . . . . 1 . . . . . Combat Hostiles 1 | . . . . . . . 1 . . . . . Parts Melted 7 | . 1 . . 1 . 2 3 . . . . . Heat Transferred 2680 | . 50 . . 407 148 606 1469 . . . . . Parts Sabotaged . | . . . . . . . . . . . . . Parts Stolen . | . . . . . . . . . . . . . Parts Stripped . | . . . . . . . . . . . . . Power Chain Reactions 2 | . 1 . . . . . 1 . . . . . Missiles Intercepted . | . . . . . . . . . . . . . Alert | -11 -10 -10 -10 -9 -8 -8 -8 -7 -7 -7 -7 -6 ------- Run | Jun Mat Min Exi Min Mat Gar Mat Fac Low Low Dat Pro Peak Influence 1077 | . 207 25 . 127 358 1077 768 371 . . . . Initial 524 | . . 25 . . 49 234 524 315 . . . . Average 356 | . 90 11 . 72 142 724 678 237 . . . . Maximum Alert Level 3 | . 1 . . . 1 3 3 1 . . . . Low Security (%) 46 | 100 91 100 . 100 74 . . 46 . . . . Level 1 15 | . 8 . . . 25 5 . 53 . . . . Level 2 19 | . . . . . . 39 64 . . . . . Level 3 18 | . . . . . . 54 35 . . . . . Level 4 . | . . . . . . . . . . . . . Level 5 . | . . . . . . . . . . . . . High Security . | . . . . . . . . . . . . . Max Security . | . . . . . . . . . . . . . Squads Dispatched 10 | . 1 . . . 1 . 4 4 . . . . Investigation 3 | . 1 . . . . . . 2 . . . . Extermination 2 | . . . . . . . . 2 . . . . Reinforcement 3 | . . . . . 1 . 2 . . . . . Assault . | . . . . . . . . . . . . . Garrison 2 | . . . . . . . 2 . . . . . Intercept . | . . . . . . . . . . . . . Searches Triggered . | . . . . . . . . . . . . . Construction Impeded 1 | . . . . . . . 1 . . . . . Haulers Reinforced . | . . . . . . . . . . . . . Active Scanning Responses . | . . . . . . . . . . . . . Cargo Convoy Interrupts . | . . . . . . . . . . . . . Stealth | -11 -10 -10 -10 -9 -8 -8 -8 -7 -7 -7 -7 -6 --------- Run | Jun Mat Min Exi Min Mat Gar Mat Fac Low Low Dat Pro Distress Signals 5 | . 1 . . . 3 . 1 . . . . . Communications Jammed 1 | . . . . . . . 1 . . . . . Distress Signals 1 | . . . . . . . 1 . . . . . Times Spotted 137 | . 12 1 . 4 20 21 32 16 11 9 . 11 Peak Tracking Total 11 | . 3 1 . 4 11 5 6 4 4 3 . 7 Tactical Retreats 20 | . 1 1 . 1 5 2 2 3 . 3 . 2 Traps | -11 -10 -10 -10 -9 -8 -8 -8 -7 -7 -7 -7 -6 ------- Run | Jun Mat Min Exi Min Mat Gar Mat Fac Low Low Dat Pro Traps Triggered 11 | . 2 . . . . 4 . 5 . . . . Indirectly . | . . . . . . . . . . . . . Trap Hack Attempts 16 | . . . . . . . . 16 . . . . Triggered . | . . . . . . . . . . . . . Disarmed 3 | . . . . . . . . 3 . . . . Reprogrammed . | . . . . . . . . . . . . . Reused . | . . . . . . . . . . . . . Traps Extracted . | . . . . . . . . . . . . . Installed . | . . . . . . . . . . . . . Triggered 4 | . . . . . . . . . 3 1 . . Machines | -11 -10 -10 -10 -9 -8 -8 -8 -7 -7 -7 -7 -6 ---------- Run | Jun Mat Min Exi Min Mat Gar Mat Fac Low Low Dat Pro Machines Disabled 9 | . 1 . . . . 7 . . . 1 . . Max in Single Turn 2 | . 1 . . . . 2 . . . 1 . . Garrison Relay 3 | . . . . . . 3 . . . . . . Machines Repaired . | . . . . . . . . . . . . . Machines Sabotaged . | . . . . . . . . . . . . . Overloaded Fab Kills . | . . . . . . . . . . . . . Hacking | -11 -10 -10 -10 -9 -8 -8 -8 -7 -7 -7 -7 -6 --------- Run | Jun Mat Min Exi Min Mat Gar Mat Fac Low Low Dat Pro Machines Accessed 39 | . 6 1 5 . 6 4 8 4 . 1 4 . Terminals 19 | . 5 . . . 3 4 5 2 . . . . Fabricators 2 | . . . . . . . . 2 . . . . Repair Stations 1 | . . . . . . . 1 . . . . . Recycling Units 2 | . 1 . . . . . 1 . . . . . Scanalyzers 3 | . . . . . 2 . 1 . . . . . Garrison Access 1 | . . . . . 1 . . . . . . . Total Hacks 170 | . 12 1 50 . 24 6 32 14 . 1 30 . Successful 129 | . 4 1 50 . 15 3 17 8 . 1 30 . Failed 41 | . 8 . . . 9 3 15 6 . . . . Catastrophic . | . . . . . . . . . . . . . Database Lockouts . | . . . . . . . . . . . . . Manual 9 | . . . 1 . . . 5 2 . 1 . . Terminals 53 | . 11 . . . 9 6 18 9 . . . . Fabricators 5 | . . . . . . . . 5 . . . . Repair Stations 2 | . . . . . . . 2 . . . . . Recycling Units 7 | . 1 . . . . . 6 . . . . . Scanalyzers 20 | . . . . . 14 . 6 . . . . . Garrison Access 1 | . . . . . 1 . . . . . . . Terminal Hacks 104 | . 3 1 50 . 5 3 6 5 . 1 30 . Record 63 | . 1 . 49 . 1 . 1 . . . 11 . Part Schematic 11 | . . . . . . . . . . . 11 . Robot Schematic 5 | . . . . . . . . . . . 5 . Prototype ID Bank 8 | . . . . . 2 . 2 1 . . 3 . Open Door 2 | . . 1 . . . . . . . 1 . . Emergency Access Points 3 | . 1 . . . . 1 . 1 . . . . Terminal Index 2 | . . . . . . . 1 1 . . . . Unreport Threat 1 | . . . . . . . . 1 . . . . Locate Traps 2 | . . . . . 1 . 1 . . . . . Dispatch Records 1 | . . . . . 1 . . . . . . . Registered Components 1 | . . . . . . . 1 . . . . . Zone Layout 2 | . 1 . . . . . . 1 . . . . Garrison Registry 1 | . . . . . . 1 . . . . . . Security Stations 1 | . . . . . . 1 . . . . . . EX-Prototype ID Bank 1 | . . . 1 . . . . . . . . . Fabricator Hacks 3 | . . . . . . . . 3 . . . . Load Schematic 2 | . . . . . . . . 2 . . . . Build 1 | . . . . . . . . 1 . . . . Repair Station Hacks 2 | . . . . . . . 2 . . . . . Scan Component 1 | . . . . . . . 1 . . . . . Repair 1 | . . . . . . . 1 . . . . . Recycling Unit Hacks 4 | . 1 . . . . . 3 . . . . . Report Inventory 2 | . 1 . . . . . 1 . . . . . Retrieve Components 2 | . . . . . . . 2 . . . . . Scanalyzer 15 | . . . . . 9 . 6 . . . . . Insert Component 6 | . . . . . 4 . 2 . . . . . Analyze 9 | . . . . . 5 . 4 . . . . . Garrison Access Hacks 1 | . . . . . 1 . . . . . . . Unlock Access 1 | . . . . . 1 . . . . . . . Unauthorized Hacks . | . . . . . . . . . . . . . Terminals . | . . . . . . . . . . . . . Fabricators . | . . . . . . . . . . . . . Repair Stations . | . . . . . . . . . . . . . Recycling Units . | . . . . . . . . . . . . . Scanalyzers . | . . . . . . . . . . . . . Garrison Access . | . . . . . . . . . . . . . Data Cores Recovered . | . . . . . . . . . . . . . Used . | . . . . . . . . . . . . . Hacking Detections 23 | . 4 . . . 5 2 8 4 . . . . Full Trace Events 5 | . 2 . . . . . 1 2 . . . . Feedback Events . | . . . . . . . . . . . . . Feedback Blocked . | . . . . . . . . . . . . . Robot Schematics Acquired 5 | . . . . . . . . . . . 5 . Robots Built . | . . . . . . . . . . . . . Authchips . | . . . . . . . . . . . . . Time . | . . . . . . . . . . . . . Total Robot Build Rating . | . . . . . . . . . . . . . Part Schematics Acquired 17 | . . . . . 4 . 2 . . . 11 . Parts Built 1 | . . . . . . . . 1 . . . . Authchips . | . . . . . . . . . . . . . Time 106 | . . . . . . . . 106 . . . . Total Part Build Rating 6 | . . . . . . . . 6 . . . . Parts Repaired 1 | . . . . . . . 1 . . . . . Time 44 | . . . . . . . 44 . . . . . Parts Recycled . | . . . . . . . . . . . . . Recycled Matter . | . . . . . . . . . . . . . Retrieved Matter . | . . . . . . . . . . . . . Retrieved Components 18 | . . . . . . . 18 . . . . . Parts Scanalyzed 6 | . . . . . 4 . 2 . . . . . Part Schematics Acquired 6 | . . . . . 4 . 2 . . . . . Parts Damaged 2 | . . . . . . . 2 . . . . . Bothacking | -11 -10 -10 -10 -9 -8 -8 -8 -7 -7 -7 -7 -6 ------------ Run | Jun Mat Min Exi Min Mat Gar Mat Fac Low Low Dat Pro Used RIF Installer 2 | . . . . . . 2 . . . . . . Program Shield 1 | . . . . . . 1 . . . . . . Robots Hacked 14 | . . . . . . 4 8 2 . . . . Non-combat 2 | . . . . . . . 2 . . . . . Combat 12 | . . . . . . 4 6 2 . . . . Robot Hacks Applied 16 | . . . . . . 4 10 2 . . . . no_distress 2 | . . . . . . . 2 . . . . . find_recycling 1 | . . . . . . . 1 . . . . . find_station 1 | . . . . . . . 1 . . . . . reboot_system 3 | . . . . . . . 3 . . . . . streamctrl_high 3 | . . . . . . 1 1 1 . . . . formatsys_high 6 | . . . . . . 3 2 1 . . . . Relay Couplers Released 12 | . . . . . . 12 . . . . . . Machine Destruction 12 | . . . . . . 12 . . . . . . Attached 10 | . . . . . . 8 . 2 . . . . Fabnet Peak Effective % . | . . . . . . . . . . . . . Robots Rewired . | . . . . . . . . . . . . . Allies Hacked . | . . . . . . . . . . . . . Hacks Repelled . | . . . . . . . . . . . . . Allies | -11 -10 -10 -10 -9 -8 -8 -8 -7 -7 -7 -7 -6 -------- Run | Jun Mat Min Exi Min Mat Gar Mat Fac Low Low Dat Pro Total Allies 10 | . . . . . . 4 3 2 . . . 1 Largest Group 2 | . . . . . . 2 1 1 . . . 1 Highest-Rated Group 96 | . . . . . . 32 16 21 . . . 96 Highest-Rated Ally 96 | . . . . . . 16 16 21 . . . 96 Total Orders 1 | . . 1 . . . . . . . . . . EXPLORE 1 | . . 1 . . . . . . . . . . Ally Attacks 32 | . . . . . . 13 11 4 . . . 4 Total Damage 605 | . . . . . . 248 206 105 . . . 46 Kills 5 | . . . . . . 2 1 1 . . . 1 Allies Corrupted . | . . . . . . . . . . . . . Allies Melted . | . . . . . . . . . . . . . Intel | -11 -10 -10 -10 -9 -8 -8 -8 -7 -7 -7 -7 -6 ------- Run | Jun Mat Min Exi Min Mat Gar Mat Fac Low Low Dat Pro Robot Analysis Total . | . . . . . . . . . . . . . Derelict Logs Recovered 4 | . . . . 1 . . . . 1 2 . . Drone Launches 10 | . . 10 . . . . . . . . . . Drone Recoveries 5 | . . 5 . . . . . . . . . . Exploration | -11 -10 -10 -10 -9 -8 -8 -8 -7 -7 -7 -7 -6 ------------- Run | Jun Mat Min Exi Min Mat Gar Mat Fac Low Low Dat Pro Turns Passed 5662 | 35 673 282 370 325 311 984 562 789 295 900 41 95 Spaces Moved 7950 | 28 385 332 458 521 693 1495 586 1010 657 1549 82 154 Core 837 | 2 73 205 . 2 . . . 28 4 294 82 147 Treads . | . . . . . . . . . . . . . Legs 7 | . . . . . . . . . . . . 7 Wheels 983 | 26 241 60 458 198 . . . . . . . . Hover 1905 | . 71 67 . . . 388 586 706 . 87 . . Flight 4218 | . . . . 321 693 1107 . 276 653 1168 . . Fastest Speed 32 | 50 56 50 80 37 37 39 56 34 32 32 50 50 Average Speed 52 | 86 113 59 80 53 37 46 59 56 34 41 50 53 Slowest Speed 250 | 90 250 116 80 100 117 120 120 120 200 100 50 120 Overloaded Moves . | . . . . . . . . . . . . . Propulsion Burnouts . | . . . . . . . . . . . . . Robots Hopped 24 | . . . . 1 14 4 . 1 . 4 . . Cave-ins Triggered 1 | . . . . . . 1 . . . . . . Exploration Rate (%) 61 | 3 69 94 88 95 43 89 43 23 70 90 68 20 Regions Visited 12 Branch Regions 7 Pre-discovered Areas 3 | . . . 1 . . . . . . 1 1 . Known Exits Taken 1 | . . . . . 1 . . . . . . . Unknown Exits Taken 10 | 1 1 1 1 1 . . 1 1 1 1 1 . Scrap Searched 11 | . . 1 . 2 . . . . 1 6 . 1 Spaces Dug . | . . . . . . . . . . . . . Terrain Destroyed 178 | . 3 . . 7 . 151 6 10 . . . 1 Melee . | . . . . . . . . . . . . . Projectile 24 | . . . . 7 . . 6 10 . . . 1 AOE 154 | . 3 . . . . 151 . . . . . . Terrain Rammed . | . . . . . . . . . . . . . Walls Destroyed . | . . . . . . . . . . . . . Machines Disabled . | . . . . . . . . . . . . . Actions | -11 -10 -10 -10 -9 -8 -8 -8 -7 -7 -7 -7 -6 --------- Run | Jun Mat Min Exi Min Mat Gar Mat Fac Low Low Dat Pro Total 9124 | 34 530 405 463 560 729 1748 741 1192 712 1763 81 166 Wait 486 | . 61 56 . 15 8 67 54 66 13 144 . 2 Move 7894 | 27 384 331 457 518 669 1485 585 1007 656 1540 81 154 Hop 20 | . . . . 1 10 4 . 1 . 4 . . Pick Up 42 | 1 6 1 1 1 6 10 3 2 3 8 . . Fast Attach 107 | 5 12 3 . 2 7 26 17 14 8 10 . 3 Attach 41 | . 1 . 1 1 5 12 2 7 2 8 . 2 Detach 50 | . . . 1 1 6 18 3 7 4 7 . 3 Swap 22 | . 3 5 . 1 2 6 2 . 1 2 . . Drop 96 | . 11 1 3 3 12 24 14 8 8 12 . . Fire 248 | 1 52 8 . 7 4 34 58 38 17 28 . 1 Melee 2 | . . . . . . . 2 . . . . . Ram 13 | . . . . 10 . 1 1 . . . . 1 Kick . | . . . . . . . . . . . . . Crush . | . . . . . . . . . . . . . Escape Stasis 87 | . . . . . . 61 . 26 . . . . Rewire . | . . . . . . . . . . . . . Trap 16 | . . . . . . . . 16 . . . . Miscellaneous . | . . . . . . . . . . . . . Route ------- -11/Junkyard -10/Materials (discovered 3 exits: [*Mat x2] / *Min) -10/Mines (discovered 3 exits: [*Mat x2] / *Exi) -10/Exiles -9/Mines (discovered 2 exits: *Mat x2) -8/Materials (discovered 2 exits: *Sto / Gar) -8/Garrison (discovered 3 exits: *Mat x3) -8/Materials (discovered 2 exits: *Fac / *Sto) -7/Factory (discovered 2 exits: Fac / [*Low]) -7/Lower Caves -7/Lower Caves (discovered 2 exits: *Fac / *Dat) -7/Data Miner -6/Proximity Caves History --------- Turn | Location | Event 19 | -11/Junkyard | Discovered new exit (range 15) 36 | -11/Junkyard | Entered Materials 300 | -10/Materials | Build established: Mutant 384 | -10/Materials | Discovered new exit (range 13) 418 | -10/Materials | Discovered new exit (range 16) 698 | -10/Materials | Discovered new exit (range 15) 709 | -10/Materials | Entered Mines 736 | -10/Mines | Found the Drone Emporium 739 | -10/Mines | Found Prototype Device 740 | -10/Mines | Identified Sensor Drone Bay 759 | -10/Mines | Discovered new exit (range 28) 804 | -10/Mines | Discovered new exit (range 63) 823 | -10/Mines | Core integrity fell below 50% 851 | -10/Mines | Lost 4 parts (1p2n1w) 866 | -10/Mines | Deemed a non-threat by the Exiles lab entrance 866 | -10/Mines | Discovered new exit (range 5) 991 | -10/Mines | Entered Exiles 1011 | -10/Exiles | Met 8R-AWN 1026 | -10/Exiles | Met EX-HEX 1052 | -10/Exiles | Met EX-BIN 1061 | -10/Exiles | Aligned with FarCom system 1061 | -10/Exiles | Given EX-Vault access code 1093 | -10/Exiles | Opened EX-Vault 1112 | -10/Exiles | Warned to stay clear of 0b10 Research branches 1160 | -10/Exiles | Found AWS/Thermal 1199 | -10/Exiles | Met EX-DEC 1207 | -10/Exiles | Learned location of Zion (-6) 1239 | -10/Exiles | Visited The Gauntlet 1352 | -10/Exiles | Discovered new exit (range 12) 1361 | -10/Exiles | Left Exiles lab with AWS/Thermal 1361 | -10/Exiles | Entered Mines 1383 | -9/Mines | Discovered new exit (range 10) 1525 | -9/Mines | Met a Derelict bent on vengeance 1611 | -9/Mines | Learned Materials stockpile data 1645 | -9/Mines | Discovered new exit (range 15) 1686 | -9/Mines | Entered Materials 1686 | -8/Materials | Evolved 4 slots: Utility x4 1721 | -8/Materials | Discovered new exit (range 15) 1734 | -8/Materials | Identified exit to Storage 1997 | -8/Materials | Identified exit to Garrison 1997 | -8/Materials | Entered Garrison 2035 | -8/Garrison | Triggered checkpoint 2120 | -8/Garrison | Discovered new exit (range 12) 2122 | -8/Garrison | Learned Materials security intel 2131 | -8/Garrison | Identified exit to Materials 2145 | -8/Garrison | Discovered exit to Materials (range 61) 2145 | -8/Garrison | Discovered exit to Materials (range 57) 2145 | -8/Garrison | Discovered exit to Materials (range 25) 2152 | -8/Garrison | Triggered checkpoint 2256 | -8/Garrison | Installed Relay Interface Framework 2334 | -8/Garrison | Triggered checkpoint 2336 | -8/Garrison | Triggered checkpoint 2422 | -8/Garrison | Triggered checkpoint 2423 | -8/Garrison | Core integrity fell below 50% 2576 | -8/Garrison | P-60 Hacker assimilated allied Trooper 3a 2596 | -8/Garrison | Expanded RIF knowledge: Program Shield 2602 | -8/Garrison | Crushed by falling debris 2726 | -8/Garrison | Triggered checkpoint 2732 | -8/Garrison | Garrison Relay disabled 2850 | -8/Garrison | Triggered checkpoint 2881 | -8/Garrison | Garrison Relay disabled 2981 | -8/Garrison | Entered Materials 3221 | -8/Materials | Core integrity fell below 20% 3439 | -8/Materials | Garrison activated, responded to threat 3440 | -8/Materials | Repaired Gravmag System 3526 | -8/Materials | Discovered new exit (range 16) 3526 | -8/Materials | Discovered exit to Storage (range 5) 3543 | -8/Materials | Entered Factory 3543 | -7/Factory | Evolved 2 slots: Propulsion x1, Utility x1 3745 | -7/Factory | Discovered new exit (range 9) 3839 | -7/Factory | Lost 4 parts (1n2u1w) 4031 | -7/Factory | Fabricated Imp. Transmission Jammer? 4273 | -7/Factory | Discovered new exit (range 17) 4332 | -7/Factory | Entered Lower Caves 4362 | -7/Lower Caves | Learned Factory garrison access intel 4469 | -7/Lower Caves | Lost 3 parts (2n1u) 4548 | -7/Lower Caves | Encountered a Warlord checkpoint 4622 | -7/Lower Caves | Discovered new exit (range 15) 4627 | -7/Lower Caves | Entered another Lower Caves area 4628 | -7/Lower Caves | Identified exit to Factory 4633 | -7/Lower Caves | Learned location of Extension (-5) 4657 | -7/Lower Caves | Spotted B-75 Beast 4666 | -7/Lower Caves | Encountered a Warlord checkpoint 4696 | -7/Lower Caves | Attracted the attention of an 0b10 checkpoint 4864 | -7/Lower Caves | Discovered new exit (range 5) 4875 | -7/Lower Caves | Build established: Scavenger-Sprinter 4966 | -7/Lower Caves | Acquired the password to a Derelict Tinkerer's latest research 4970 | -7/Lower Caves | Found Prototype Special Weapon 4970 | -7/Lower Caves | Identified Molecular Deconstructor 5296 | -7/Lower Caves | Lost 4 parts (1p2n1u) 5417 | -7/Lower Caves | Caught by Unaware searching for contraband prototypes 5422 | -7/Lower Caves | Core integrity fell below 50% 5509 | -7/Lower Caves | Build established: Hacker-Mutant 5527 | -7/Lower Caves | Entered Data Miner 5527 | -7/Data Miner | Discovered new exit (range 6) 5537 | -7/Data Miner | Met Data Miner 5546 | -7/Data Miner | Learned location of Section 7 (-3) 5546 | -7/Data Miner | Acquired the access code to Warlord's prototype stash 5557 | -7/Data Miner | Received God Mode back door access code from Data Miner 5568 | -7/Data Miner | Entered Proximity Caves 5598 | -6/Proximity Caves | Escorted by Enhanced Grunt 5651 | -6/Proximity Caves | Core integrity fell below 20% 5663 | -6/Proximity Caves | Destroyed by H-66 Slayer with Heavy Assault Rifle Last Messages --------------- 05579_ Acquired Imp. Targeting Computer. 05598_ Enhanced Grunt: "Protecting LRC-V3." 05607_ Acquired 20 matter. 05615_ Slammed into S-27 Virus. 05615_ Imp. Targeting Computer broken. 05615_ Destabilizing: Short circuit. 05616_ Discarded Broken Imp. Targeting Computer. 05618_ Acquired 5 matter. 05625_ Mak. System Shield destroyed. 05627_ Weight Redist. System destroyed. 05636_ Acquired Prototype Leg. 05636_ Identified Enh. Flexi-carbon Leg. 05637_ Acquired 10 matter. 05639_ Acquired Prototype Energy Cannon. 05639_ Identified Neutron Cannon. 05653_ Core Shielding destroyed. 05663_ Penetrated by Slug. 05663_ Com. Battery destroyed. 05663_ Penetrated by Slug. [Achievement: 10k Club] Map ----- +----------------------------------------------------+ | ?????????????????????????????????????????????????? | | ?????????????????????????????????????????????????? | | ?????????????????????????????????????????????????? | | ?????????????????????????????????????????????????? | | ?????????????????????????????????????????????????? | | ?????????????????????????????????????????????????? | | ?????????????????????????????????????????????????? | | ?????????????????????????????????????????????????? | | ?????????????????????????????????????????????????? | | ?????????????????????????????????????????????????? | | ?????????????????????????????????????????????????? | | ?????????????????????????????????????????????????? | | ????#######??????????????????????????????????????? | | ????# #######????????????????????????????????? | | ????# "#?????????###????????????????????? | | ????# "#?????????? ###??????????????????? | | ###?# ##?????????? ##?????????????????? | | #?# ! #####?????? #?????????????????? | | #?# ###"% #### ####???# #?????????????????? | | ### #?##%!#### ##### ##????????????????? | | #??#!!#;# ## #????????????????? | | ### #??#! h #????????????????? | | ##?# #??# #????????????????? | | #### #??# s ##????????????????? | | #??# s ##????????????????? | | #####?# ##s@ ##???????????????? | | #???? ## ### ##??????????????? | | #??# ## ## ####?# ##?????????????? | | ##??# #?### ##????## #?????????????? | | ##???## ???# ##??????## ## ####?????????????? | | #?????# ???## ##????????##### #????????????????? | | #?????# ????##?????????????# #????????????????? | | #????? ???????????????????## #???????????????? | | #???? ?????????????????????## #???????????????? | | #???# ??????????????????????? #???????????????? | | #### ??????????????????????? #???????????????? | | # ??????????????????????? ???????????????? | | ? ???????????????????????# ???????????????? | | ? """" ? ????????????????????# ??????????????? | | ? """" ???????????????????? ??????????????? | | # """" ???????????????????? ?????????????? | | "" #????????????????????? ?????????????? | | " #?????????????????????? #????????????? | | """ #?????????????????????? ????????????? | | "" #?????????????????????#??????????????? | | #???????????????????????????????????? | | ## ##### #??????????????????????????????????? | | #?????????????????????????????????????????? | | #?????????????????????????????????????????? | | ########?????????????????????????????????????????? | +----------------------------------------------------+ Best States ------------- Heat Dissipation 45 Energy Generation 17 Energy Capacity 570 Matter Stores 400 Matter Capacity 400 Sight Range 18 Terrain Scan Range 16 Terrain Scan Density 10 Jamming Range 14 Additional Mass Support 9 Armor Coverage 225 Core Shielding 20 Evasion (%) 63 Targeting Accuracy 6 Core Analysis 6 Salvage Targeting 2 Offensive Hacking 20 Defensive Hacking 44 Relay Coupler Types 4 Relay Coupler Value 114 Item Schematics ----------------- Hvy. Assault Rifle | -8/Materials | Scanalyzed Lrn. Tractor Beam | -8/Materials | Scanalyzed Lgt. Ion Engine | -8/Materials | Scanalyzed Flight Unit | -8/Materials | Scanalyzed Imp. Transmission Jammer | -8/Materials | Scanalyzed Imp. Remote Datajack | -8/Materials | Scanalyzed Combat Drone Bay | -7/Data Miner | Free Lgt. Regenerative Plating | -7/Data Miner | Free Cld. Cesium-ion Thruster | -7/Data Miner | Free Gravity Neutralizer | -7/Data Miner | Free Antimatter Cannon | -7/Data Miner | Free Antigrav System | -7/Data Miner | Free Point Defense System | -7/Data Miner | Free Wave Gun | -7/Data Miner | Free Imp. Particle Charger | -7/Data Miner | Free Adv. Hacking Suite | -7/Data Miner | Free Antimatter Reactor | -7/Data Miner | Free Robot Schematics ------------------ B-48 Gladiator | -7/Data Miner | Free M-22 Extractor | -7/Data Miner | Free G-50 Soldier | -7/Data Miner | Free D-53 Grenadier | -7/Data Miner | Free E-15 Imp | -7/Data Miner | Free Fabricated ------------ Imp. Transmission Jammer | x1 | -7/Factory Alien Tech Used ----------------- None Achievements -------------- 10k Club Deconstruction Leap Before You Look Release The Drones! The Oracle Unlikely Earthworm Challenges ------------ None Game ------ Seed KineticParticleReconstructor Manual? 0 Play Time 02:15:50 Cumulative 16.7 hours Start 2023.12.14 @ 04:56:09 End 2023.12.14 @ 07:16:29 Sessions 1 Manual Loads 0 Difficulty Rogue Special Mode None Game No. 10 Rogue 10 Adventurer 0 Explorer 0 Win Type - Total 0 Types 0/0/0/0/0/0/0/0/0 Lore% 19 Gallery% 20 Achievement% 22 Wizard Run 0 Options --------- ASCII 0 Keyboard 1 Movement Arrows Keybinds 0 Fullscreen 1 Font 12/Proggy Map View 83x54 Tactical HUD 1 Map Filters NONE Filters NONE Steam 0 RUN: 48d11055-6ff9-4e30-ac8e-b75c9a80c8b6